fUST/lending_fUST_20250727
["ID","MTS","AMOUNT","RATE_DAILY","PERIOD"]
[375215474,1753588244937,-460.0,0.00019726,2]
[375215476,1753588244946,-462.24,0.00019726,2]
[375215478,1753588244956,-460.0,0.00019726,2]
[375215480,1753588244965,-726.48,0.00019726,2]
[375215481,1753588244974,-722.49,0.00019726,2]
[375215483,1753588244983,-460.0,0.00019726,2]
[375215485,1753588244993,-460.0,0.00019726,2]
[375215487,1753588245003,-460.0,0.00019726,2]
[375215489,1753588245014,-589.28,0.00019726,2]
[375215491,1753588245023,-572.71,0.00019726,2]
[375215492,1753588245032,-464.39177726,0.00019726,2]
[375215494,1753588245042,-460.0,0.00019726,2]
[375215496,1753588245052,-199.28404002,0.00019726,2]
[375215498,1753588245061,-460.0,0.00019726,2]
[375215500,1753588245070,-460.0,0.00019726,2]
[375215502,1753588245080,-1471.74,0.00019726,2]
[375215503,1753588245089,-460.0,0.00019726,2]
[375215505,1753588245098,-1454.12,0.00019726,2]
[375215507,1753588245108,-707.06,0.00019726,2]
[375215509,1753588245117,-460.0,0.00019726,2]
[375215511,1753588245126,-460.0,0.00019726,2]
[375215512,1753588245135,-460.0,0.00019726,2]
[375215514,1753588245144,-500.0,0.00019773,2]
[375215516,1753588245153,-500.0,0.00019773,2]
[375215518,1753588245162,-500.0,0.00019773,2]
[375215520,1753588245171,-503.67830945,0.00019773,2]
[375215521,1753588245180,-500.0,0.00019773,2]
[375215523,1753588245191,-301.0,0.00019851,2]
[375215525,1753588245200,-4256.29007862,0.000199,2]
[375215527,1753588245209,-460.0,0.0002,2]
[375215529,1753588245219,-460.0,0.0002,2]
[375215530,1753588245227,-303.95450952,0.0002,2]
[375215532,1753588245236,-460.0,0.0002,2]
[375215534,1753588245246,-460.0,0.0002,2]
[375215536,1753588245255,-1595.96,0.0002,2]
[375215538,1753588245264,-460.0,0.0002,2]
[375215539,1753588245274,-460.0,0.0002,2]
[375215541,1753588245283,-460.0,0.0002,2]
[375215543,1753588245292,-2116.28,0.0002,2]
[375215545,1753588245301,-575.22,0.0002,2]
[375215547,1753588245310,-460.0,0.0002,2]
[375215549,1753588245320,-697.74,0.0002,2]
[375215550,1753588245330,-475.73317645,0.0002,2]
[375215552,1753588245339,-460.0,0.0002,2]
[375215554,1753588245348,-460.0,0.0002,2]
[375215556,1753588245357,-460.0,0.0002,2]
[375215558,1753588245366,-645.61,0.0002,2]
[375215560,1753588245375,-460.0,0.0002,2]
[375215562,1753588245384,-460.0,0.0002,2]
[375215563,1753588245393,-460.0,0.0002,2]
[375215565,1753588245402,-1013.8,0.0002,2]
[375215567,1753588245411,-460.0,0.0002,2]
[375215569,1753588245420,-460.0,0.0002,2]
[375215571,1753588245429,-460.0,0.0002,2]
[375215572,1753588245438,-460.0,0.0002,2]
[375215574,1753588245448,-2527.68,0.0002,2]
[375215576,1753588245457,-460.0,0.0002,2]
[375215578,1753588245467,-460.0,0.0002,2]
[375215580,1753588245477,-460.0,0.0002,2]
[375215581,1753588245486,-882.45,0.0002,2]
[375215583,1753588245495,-586.28,0.0002,2]
[375215585,1753588245504,-736.12,0.0002,2]
[375215587,1753588245513,-460.0,0.0002,2]
[375215589,1753588245522,-493.92,0.0002,2]
[375215591,1753588245531,-460.0,0.0002,2]
[375215592,1753588245541,-460.0,0.0002,2]
[375215594,1753588245550,-460.0,0.0002,2]
[375215596,1753588245560,-460.0,0.0002,2]
[375215598,1753588245569,-460.0,0.0002,2]
[375215600,1753588245578,-460.0,0.0002,2]
[375215602,1753588245587,-460.0,0.0002,2]
[375215603,1753588245597,-460.0,0.0002,2]
[375215605,1753588245607,-460.0,0.0002,2]
[375215607,1753588245616,-1011.18,0.0002,2]
[375215609,1753588245626,-460.0,0.0002,2]
[375215611,1753588245635,-460.0,0.0002,2]
[375215613,1753588245646,-460.0,0.0002,2]
[375215614,1753588245655,-460.0,0.0002,2]
[375215616,1753588245666,-2157.35,0.0002,2]
[375215618,1753588245675,-460.0,0.0002,2]
[375215620,1753588245684,-2162.05,0.0002,2]
[375215622,1753588245694,-460.0,0.0002,2]
[375215624,1753588245704,-472.54,0.0002,2]
[375215626,1753588245713,-556.03,0.0002,2]
[375215627,1753588245722,-460.0,0.0002,2]
[375215629,1753588245732,-460.0,0.0002,2]
[375215631,1753588245742,-641.88,0.0002,2]
[375215633,1753588245751,-580.67,0.0002,2]
[375215635,1753588245761,-1456.07,0.0002,2]
[375215637,1753588245770,-460.0,0.0002,2]
[375215639,1753588245779,-2844.33,0.0002,2]
[375215640,1753588245788,-460.0,0.0002,2]
[375215642,1753588245798,-783.52,0.0002,2]
[375215644,1753588245807,-640.75,0.0002,2]
[375215646,1753588245816,-693.36,0.0002,2]
[375215648,1753588245826,-770.33,0.0002,2]
[375215650,1753588245835,-1001.08,0.0002,2]
[375215651,1753588245843,-460.0,0.0002,2]
[375215653,1753588245854,-460.0,0.0002,2]
[375215655,1753588245863,-2162.08,0.0002,2]
[375215657,1753588245873,-679.04,0.0002,2]
[375215659,1753588245887,-460.0,0.0002,2]
[375215661,1753588245896,-465.15033572,0.0002,2]
[375215663,1753588245905,-906.32,0.0002,2]
[375215665,1753588245916,-460.0,0.0002,2]
[375215667,1753588245925,-568.78,0.0002,2]
[375215668,1753588245934,-460.0,0.0002,2]
[375215670,1753588245944,-463.50858852,0.0002,2]
[375215672,1753588245953,-460.0,0.0002,2]
[375215674,1753588245962,-648.64,0.0002,2]
[375215676,1753588245972,-460.0,0.0002,2]
[375215678,1753588245981,-1183.66,0.0002,2]
[375215680,1753588245991,-460.0,0.0002,2]
[375215681,1753588246000,-460.0,0.0002,2]
[375215683,1753588246010,-460.0,0.0002,2]
[375215685,1753588246019,-4830.13,0.0002,2]
[375215687,1753588246028,-460.0,0.0002,2]
[375215689,1753588246037,-460.0,0.0002,2]
[375215691,1753588246047,-460.0,0.0002,2]
[375215692,1753588246056,-967.02,0.0002,2]
[375215694,1753588246066,-460.0,0.0002,2]
[375215696,1753588246075,-723.97,0.0002,2]
[375215698,1753588246084,-487.2,0.0002,2]
[375215700,1753588246095,-460.0,0.0002,2]
[375215702,1753588246104,-460.0,0.0002,2]
[375215704,1753588246114,-460.0,0.0002,2]
[375215705,1753588246123,-460.0,0.0002,2]
[375215707,1753588246133,-460.0,0.0002,2]
[375215709,1753588246143,-4375.62,0.0002,2]
[375215711,1753588246152,-460.0,0.0002,2]
[375215713,1753588246162,-437.00240351,0.0002,2]
[375215715,1753588246172,-460.0,0.0002,2]
[375215717,1753588246182,-466.27081385,0.0002,2]
[375215719,1753588246192,-460.0,0.0002,2]
[375215721,1753588246202,-460.0,0.0002,2]
[375215722,1753588246212,-460.0,0.0002,2]
[375215724,1753588246222,-460.0,0.0002,2]
[375215726,1753588246231,-660.74,0.0002,2]
[375215728,1753588246241,-841.42,0.0002,2]
[375215730,1753588246250,-460.0,0.0002,2]
[375215732,1753588246260,-1268.11,0.0002,2]
[375215734,1753588246269,-759.47,0.0002,2]
[375215736,1753588246279,-687.3,0.0002,2]
[375215737,1753588246288,-510.4,0.0002,2]
[375215739,1753588246297,-189.94795967,0.0002,2]
[375215741,1753588246307,-462.24,0.0002,2]
[375215743,1753588246316,-726.48,0.0002,2]
[375215745,1753588246325,-722.49,0.0002,2]
[375215747,1753588246335,-460.0,0.0002,2]
[375215749,1753588246345,-460.0,0.0002,2]
[375215750,1753588246355,-589.28,0.0002,2]
[375215752,1753588246364,-572.71,0.0002,2]
[375215754,1753588246374,-466.48220517,0.0002,2]
[375215756,1753588246384,-1471.74,0.0002,2]
[375215758,1753588246393,-460.0,0.0002,2]
[375215760,1753588246403,-1454.12,0.0002,2]
[375215762,1753588246413,-707.06,0.0002,2]
[375215764,1753588246422,-460.0,0.0002,2]
[375215766,1753588246431,-460.0,0.0002,2]
[375215767,1753588246441,-1000.0,0.00020021,2]
[375215769,1753588246451,-503.7701983,0.00020021,2]
[375215771,1753588246460,-500.0,0.00020021,2]
[375215773,1753588246470,-1000.0,0.00020021,2]
[375215775,1753588246479,-1500.0,0.00020068,2]
[375215777,1753588246488,-458.10455551,0.00020068,2]
[375215779,1753588246497,-368.0,0.00020071,2]
[375215780,1753588246507,-585.0,0.00020079,2]
[375215782,1753588246517,-1428.97087143,0.000201,2]
[375215784,1753588246526,-4256.2900784,0.00020107,2]
[375215786,1753588246535,-211.842753,0.00020187,2]
[375215788,1753588246544,-150.7077177,0.00020227,2]
[375215790,1753588246554,-460.0,0.00020273,2]
[375215792,1753588246563,-460.0,0.00020273,2]
[375215794,1753588246572,-460.0,0.00020273,2]
[375215795,1753588246582,-460.0,0.00020273,2]
[375215797,1753588246591,-1595.96,0.00020273,2]
[375215799,1753588246600,-460.0,0.00020273,2]
[375215801,1753588246610,-460.0,0.00020273,2]
[375215803,1753588246620,-460.0,0.00020273,2]
[375215805,1753588246629,-2116.28,0.00020273,2]
[375215806,1753588246639,-575.22,0.00020273,2]
[375215807,1753588246650,-460.0,0.00020273,2]
[375215808,1753588246659,-697.74,0.00020273,2]
[375215809,1753588246669,-460.0,0.00020273,2]
[375215810,1753588246679,-460.0,0.00020273,2]
[375215811,1753588246688,-460.0,0.00020273,2]
[375215812,1753588246699,-645.61,0.00020273,2]
[375215813,1753588246707,-460.0,0.00020273,2]
[375215814,1753588246717,-460.0,0.00020273,2]
[375215815,1753588246726,-1013.8,0.00020273,2]
[375215816,1753588246736,-460.0,0.00020273,2]
[375215817,1753588246746,-460.0,0.00020273,2]
[375215818,1753588246755,-2527.68,0.00020273,2]
[375215819,1753588246764,-490.99361653,0.00020273,2]
[375215820,1753588246773,-460.0,0.00020273,2]
[375215821,1753588246783,-460.0,0.00020273,2]
[375215822,1753588246792,-882.45,0.00020273,2]
[375215823,1753588246802,-586.28,0.00020273,2]
[375215824,1753588246811,-736.12,0.00020273,2]
[375215825,1753588246820,-460.0,0.00020273,2]
[375215826,1753588246829,-493.92,0.00020273,2]
[375215827,1753588246838,-460.0,0.00020273,2]
[375215828,1753588246848,-460.0,0.00020273,2]
[375215829,1753588246857,-460.0,0.00020273,2]
[375215830,1753588246866,-460.0,0.00020273,2]
[375215831,1753588246876,-331.8449,0.00020273,2]
[375215832,1753588246887,-460.0,0.00020273,2]
[375215833,1753588246896,-1011.18,0.00020273,2]
[375215834,1753588246905,-460.0,0.00020273,2]
[375215835,1753588246914,-460.0,0.00020273,2]
[375215836,1753588246924,-460.0,0.00020273,2]
[375215837,1753588246933,-460.0,0.00020273,2]
[375215838,1753588246944,-2157.35,0.00020273,2]
[375215839,1753588246953,-460.0,0.00020273,2]
[375215840,1753588246962,-2162.05,0.00020273,2]
[375215841,1753588246972,-460.0,0.00020273,2]
[375215842,1753588246981,-472.54,0.00020273,2]
[375215843,1753588246991,-556.03,0.00020273,2]
[375215844,1753588247001,-460.0,0.00020273,2]
[375215845,1753588247010,-460.0,0.00020273,2]
[375215846,1753588247019,-641.88,0.00020273,2]
[375215847,1753588247028,-580.67,0.00020273,2]
[375215848,1753588247038,-1456.07,0.00020273,2]
[375215849,1753588247047,-2844.33,0.00020273,2]
[375215850,1753588247056,-783.52,0.00020273,2]
[375215851,1753588247065,-640.75,0.00020273,2]
[375215852,1753588247073,-693.36,0.00020273,2]
[375215853,1753588247083,-770.33,0.00020273,2]
[375215854,1753588247093,-1001.08,0.00020273,2]
[375215855,1753588247102,-29.63275441,0.00020273,2]
[375215856,1753588247128,-430.36724559,0.00020273,2]
[375215857,1753588247138,-460.0,0.00020273,2]
[375215858,1753588247147,-2162.08,0.00020273,2]
[375215859,1753588247156,-679.04,0.00020273,2]
[375215860,1753588247165,-460.0,0.00020273,2]
[375215861,1753588247175,-906.32,0.00020273,2]
[375215862,1753588247184,-460.0,0.00020273,2]
[375215863,1753588247193,-568.78,0.00020273,2]
[375215864,1753588247202,-460.0,0.00020273,2]
[375215865,1753588247212,-269.20146656,0.00020273,2]
[375215866,1753588247221,-648.64,0.00020273,2]
[375215867,1753588247230,-1183.66,0.00020273,2]
[375215868,1753588247239,-460.0,0.00020273,2]
[375215869,1753588247249,-460.0,0.00020273,2]
[375215870,1753588247258,-460.0,0.00020273,2]
[375215871,1753588247268,-4830.13,0.00020273,2]
[375215872,1753588247278,-967.02,0.00020273,2]
[375215873,1753588247375,-723.97,0.00020273,2]
[375215874,1753588247398,-487.2,0.00020273,2]
[375215875,1753588247407,-460.0,0.00020273,2]
[375215876,1753588247416,-460.0,0.00020273,2]
[375215877,1753588247425,-460.0,0.00020273,2]
[375215878,1753588247434,-4375.62,0.00020273,2]
[375215879,1753588247444,-460.0,0.00020273,2]
[375215881,1753588247453,-460.0,0.00020273,2]
[375215882,1753588247462,-460.0,0.00020273,2]
[375215883,1753588247471,-460.0,0.00020273,2]
[375215885,1753588247480,-460.0,0.00020273,2]
[375215886,1753588247489,-598.269486,0.00020273,2]
[375215888,1753588247498,-660.74,0.00020273,2]
[375215889,1753588247507,-841.42,0.00020273,2]
[375215890,1753588247516,-460.0,0.00020273,2]
[375215892,1753588247525,-1268.11,0.00020273,2]
[375215893,1753588247535,-759.47,0.00020273,2]
[375215895,1753588247544,-687.3,0.00020273,2]
[375215897,1753588247553,-510.4,0.00020273,2]
[375215899,1753588247562,-462.24,0.00020273,2]
[375215901,1753588247571,-726.48,0.00020273,2]
[375215903,1753588247580,-722.49,0.00020273,2]
[375215904,1753588247589,-460.0,0.00020273,2]
[375215906,1753588247598,-460.0,0.00020273,2]
[375215908,1753588247607,-589.28,0.00020273,2]
[375215910,1753588247616,-572.71,0.00020273,2]
[375215912,1753588247625,-1471.74,0.00020273,2]
[375215914,1753588247635,-460.0,0.00020273,2]
[375215916,1753588247644,-1454.12,0.00020273,2]
[375215919,1753588247653,-707.06,0.00020273,2]
[375215920,1753588247662,-460.0,0.00020273,2]
[375215922,1753588247671,-460.0,0.00020273,2]
[375215924,1753588247680,-320.0,0.00020282,2]
[375215926,1753588247691,-4256.2900784,0.00020314,3]
[375215928,1753588247701,-500.0,0.00020321,2]
[375215930,1753588247710,-500.0,0.00020321,2]
[375215932,1753588247719,-500.0,0.00020321,2]
[375215934,1753588247728,-500.0,0.00020321,2]
[375215936,1753588247737,-229.64,0.00020335,2]
[375215938,1753588247746,-214.84090509,0.00020383,2]
[375215940,1753588247756,-526.50274803,0.00020383,2]
[375215942,1753588247765,-216.01841554,0.00020383,2]
[375215944,1753588247775,-12632.25855046,0.00020383,2]
[375215946,1753588247783,-4256.2900784,0.00020521,3]
[375215948,1753588247792,-706.2,0.00020538,3]
[375215950,1753588247802,-353.1,0.00020538,3]
[375215952,1753588247811,-214.84090509,0.00020538,3]
[375215954,1753588247820,-6541.44078534,0.00020538,3]
[375215956,1753588247829,-460.0,0.00020547,2]
[375215958,1753588247838,-460.0,0.00020547,2]
[375215960,1753588247847,-460.0,0.00020547,2]
[375215962,1753588247857,-460.0,0.00020547,2]
[375215964,1753588247866,-1595.96,0.00020547,2]
[375215966,1753588247878,-460.0,0.00020547,2]
[375215968,1753588247889,-460.0,0.00020547,2]
[375215970,1753588247898,-460.0,0.00020547,2]
[375215972,1753588247907,-2116.28,0.00020547,2]
[375215974,1753588247916,-575.22,0.00020547,2]
[375215976,1753588247927,-460.0,0.00020547,2]
[375215978,1753588247936,-697.74,0.00020547,2]
[375215981,1753588247946,-460.0,0.00020547,2]
[375215982,1753588247955,-645.61,0.00020547,2]
[375215984,1753588247965,-460.0,0.00020547,2]
[375215986,1753588247974,-460.0,0.00020547,2]
[375215988,1753588247984,-1013.8,0.00020547,2]
[375215990,1753588247993,-460.0,0.00020547,2]
[375215992,1753588248003,-460.0,0.00020547,2]
[375215994,1753588248011,-2527.68,0.00020547,2]
[375215996,1753588248021,-334.06343794,0.00020547,2]
[375215998,1753588248030,-460.0,0.00020547,2]
[375216000,1753588248040,-882.45,0.00020547,2]
[375216002,1753588248050,-586.28,0.00020547,2]
[375216004,1753588248060,-736.12,0.00020547,2]
[375216006,1753588248069,-460.0,0.00020547,2]
[375216008,1753588248078,-493.92,0.00020547,2]
[375216010,1753588248088,-460.0,0.00020547,2]
[375216012,1753588248098,-460.0,0.00020547,2]
[375216014,1753588248107,-460.0,0.00020547,2]
[375216016,1753588248116,-460.0,0.00020547,2]
[375216018,1753588248125,-460.0,0.00020547,2]
[375216020,1753588248135,-1011.18,0.00020547,2]
[375216022,1753588248144,-460.0,0.00020547,2]
[375216024,1753588248153,-460.0,0.00020547,2]
[375216026,1753588248162,-460.0,0.00020547,2]
[375216028,1753588248171,-460.0,0.00020547,2]
[375216030,1753588248180,-2157.35,0.00020547,2]
[375216032,1753588248190,-460.0,0.00020547,2]
[375216034,1753588248200,-2162.05,0.00020547,2]
[375216036,1753588248209,-317.07667341,0.00020547,2]
[375216038,1753588248219,-472.54,0.00020547,2]
[375216040,1753588248228,-556.03,0.00020547,2]
[375216042,1753588248237,-460.0,0.00020547,2]
[375216043,1753588248246,-460.0,0.00020547,2]
[375216044,1753588248256,-641.88,0.00020547,2]
[375216045,1753588248265,-580.67,0.00020547,2]
[375216046,1753588248275,-1456.07,0.00020547,2]
[375216047,1753588248284,-2844.33,0.00020547,2]
[375216048,1753588248293,-783.52,0.00020547,2]
[375216049,1753588248303,-640.75,0.00020547,2]
[375216050,1753588248313,-693.36,0.00020547,2]
[375216051,1753588248322,-770.33,0.00020547,2]
[375216052,1753588248331,-1001.08,0.00020547,2]
[375216053,1753588248341,-460.0,0.00020547,2]
[375216054,1753588248350,-679.04,0.00020547,2]
[375216055,1753588248359,-2162.08,0.00020547,2]
[375216056,1753588248368,-460.0,0.00020547,2]
[375216057,1753588248378,-906.32,0.00020547,2]
[375216058,1753588248387,-568.78,0.00020547,2]
[375216059,1753588248397,-460.0,0.00020547,2]
[375216060,1753588248407,-648.64,0.00020547,2]
[375216061,1753588248416,-1183.66,0.00020547,2]
[375216062,1753588248426,-460.0,0.00020547,2]
[375216063,1753588248435,-460.0,0.00020547,2]
[375216064,1753588248445,-4830.13,0.00020547,2]
[375216065,1753588248454,-967.02,0.00020547,2]
[375216066,1753588248464,-487.2,0.00020547,2]
[375216067,1753588248473,-723.97,0.00020547,2]
[375216068,1753588248483,-460.0,0.00020547,2]
[375216069,1753588248492,-460.0,0.00020547,2]
[375216070,1753588248501,-4375.62,0.00020547,2]
[375216071,1753588248510,-460.0,0.00020547,2]
[375216072,1753588248520,-460.0,0.00020547,2]
[375216073,1753588248529,-460.0,0.00020547,2]
[375216074,1753588248539,-660.74,0.00020547,2]
[375216075,1753588248548,-841.42,0.00020547,2]
[375216076,1753588248557,-460.0,0.00020547,2]
[375216077,1753588248566,-1268.11,0.00020547,2]
[375216078,1753588248576,-759.47,0.00020547,2]
[375216079,1753588248585,-687.3,0.00020547,2]
[375216080,1753588248595,-510.4,0.00020547,2]
[375216081,1753588248604,-462.24,0.00020547,2]
[375216082,1753588248613,-726.48,0.00020547,2]
[375216083,1753588248623,-722.49,0.00020547,2]
[375216084,1753588248632,-460.0,0.00020547,2]
[375216085,1753588248642,-460.0,0.00020547,2]
[375216086,1753588248651,-589.28,0.00020547,2]
[375216087,1753588248661,-572.71,0.00020547,2]
[375216088,1753588248670,-460.0,0.00020547,2]
[375216089,1753588248679,-1471.74,0.00020547,2]
[375216090,1753588248688,-1454.12,0.00020547,2]
[375216091,1753588248698,-707.06,0.00020547,2]
[375216092,1753588248708,-164.22329062,0.00020547,2]
[375216093,1753588248717,-1500.0,0.00020568,2]
[375216094,1753588248726,-1500.0,0.00020568,2]
[375216095,1753588248735,-2000.0,0.00020616,2]
[375216096,1753588248744,-151.0,0.000207,3]
[375216097,1753588248754,-4256.2900784,0.00020728,3]
[375216098,1753588248763,-3510.91136506,0.0002077,2]
[375216099,1753588248773,-460.0,0.00020821,2]
[375216100,1753588248782,-460.0,0.00020821,2]
[375216101,1753588248791,-460.0,0.00020821,2]
[375216102,1753588248800,-460.0,0.00020821,2]
[375216103,1753588248810,-1595.96,0.00020821,2]
[375216104,1753588248819,-460.0,0.00020821,2]
[375216105,1753588248828,-460.0,0.00020821,2]
[375216106,1753588248837,-460.0,0.00020821,2]
[375216107,1753588248847,-2116.28,0.00020821,2]
[375216108,1753588248856,-575.22,0.00020821,2]
[375216109,1753588248866,-460.0,0.00020821,2]
[375216110,1753588248875,-697.74,0.00020821,2]
[375216111,1753588248888,-460.0,0.00020821,2]
[375216112,1753588248897,-645.61,0.00020821,2]
[375216113,1753588248906,-460.0,0.00020821,2]
[375216114,1753588248915,-1013.8,0.00020821,2]
[375216115,1753588248925,-460.0,0.00020821,2]
[375216116,1753588248937,-460.0,0.00020821,2]
[375216117,1753588248947,-2527.68,0.00020821,2]
[375216118,1753588248956,-882.45,0.00020821,2]
[375216119,1753588248965,-586.28,0.00020821,2]
[375216120,1753588248974,-736.12,0.00020821,2]
[375216121,1753588248983,-460.0,0.00020821,2]
[375216122,1753588248993,-493.92,0.00020821,2]
[375216123,1753588249003,-460.0,0.00020821,2]
[375216124,1753588249012,-460.0,0.00020821,2]
[375216125,1753588249022,-460.0,0.00020821,2]
[375216126,1753588249031,-460.0,0.00020821,2]
[375216127,1753588249041,-1011.18,0.00020821,2]
[375216128,1753588249050,-460.0,0.00020821,2]
[375216129,1753588249059,-460.0,0.00020821,2]
[375216130,1753588249069,-460.0,0.00020821,2]
[375216131,1753588249078,-460.0,0.00020821,2]
[375216132,1753588249088,-2157.35,0.00020821,2]
[375216133,1753588249097,-460.0,0.00020821,2]
[375216134,1753588249107,-2162.05,0.00020821,2]
[375216135,1753588249116,-472.54,0.00020821,2]
[375216136,1753588249126,-556.03,0.00020821,2]
[375216137,1753588249135,-641.88,0.00020821,2]
[375216138,1753588249145,-580.67,0.00020821,2]
[375216139,1753588249154,-1456.07,0.00020821,2]
[375216140,1753588249163,-2844.33,0.00020821,2]
[375216141,1753588249173,-783.52,0.00020821,2]
[375216142,1753588249181,-640.75,0.00020821,2]
[375216143,1753588249190,-693.36,0.00020821,2]
[375216144,1753588249201,-770.33,0.00020821,2]
[375216145,1753588249211,-1001.08,0.00020821,2]
[375216146,1753588249221,-679.04,0.00020821,2]
[375216147,1753588249232,-2162.08,0.00020821,2]
[375216148,1753588249241,-460.0,0.00020821,2]
[375216149,1753588249251,-906.32,0.00020821,2]
[375216150,1753588249261,-568.78,0.00020821,2]
[375216151,1753588249270,-460.0,0.00020821,2]
[375216152,1753588249280,-648.64,0.00020821,2]
[375216153,1753588249289,-1183.66,0.00020821,2]
[375216154,1753588249299,-460.0,0.00020821,2]
[375216155,1753588249309,-460.0,0.00020821,2]
[375216156,1753588249318,-4830.13,0.00020821,2]
[375216157,1753588249328,-967.02,0.00020821,2]
[375216158,1753588249337,-723.97,0.00020821,2]
[375216159,1753588249346,-487.2,0.00020821,2]
[375216160,1753588249356,-460.0,0.00020821,2]
[375216161,1753588249365,-460.0,0.00020821,2]
[375216162,1753588249374,-4375.62,0.00020821,2]
[375216163,1753588249384,-460.0,0.00020821,2]
[375216164,1753588249393,-460.0,0.00020821,2]
[375216165,1753588249402,-460.0,0.00020821,2]
[375216166,1753588249411,-660.74,0.00020821,2]
[375216167,1753588249421,-841.42,0.00020821,2]
[375216168,1753588249430,-460.0,0.00020821,2]
[375216169,1753588249439,-1268.11,0.00020821,2]
[375216170,1753588249448,-759.47,0.00020821,2]
[375216171,1753588249457,-687.3,0.00020821,2]
[375216172,1753588249467,-510.4,0.00020821,2]
[375216173,1753588249476,-462.24,0.00020821,2]
[375216174,1753588249485,-726.48,0.00020821,2]
[375216175,1753588249496,-722.49,0.00020821,2]
[375216176,1753588249505,-460.0,0.00020821,2]
[375216177,1753588249514,-589.28,0.00020821,2]
[375216178,1753588249523,-572.71,0.00020821,2]
[375216179,1753588249532,-460.0,0.00020821,2]
[375216180,1753588249542,-1471.74,0.00020821,2]
[375216181,1753588249551,-1454.12,0.00020821,2]
[375216182,1753588249560,-707.06,0.00020821,2]
[375216183,1753588249569,-151.0,0.000209,3]
[375216184,1753588249578,-4256.2900784,0.00020934,4]
[375216185,1753588249588,-143933.34133049,0.00021,3]
[375216186,1753588249596,-463.877,0.00021083,2]
[375216187,1753588249606,-155.0,0.00021095,2]
[375216188,1753588249615,-3587.13,0.00021095,2]
[375216189,1753588249624,-460.0,0.00021095,2]
[375216190,1753588249633,-460.0,0.00021095,2]
[375216191,1753588249643,-460.0,0.00021095,2]
[375216192,1753588249652,-460.0,0.00021095,2]
[375216193,1753588249661,-1595.96,0.00021095,2]
[375216194,1753588249670,-460.0,0.00021095,2]
[375216195,1753588249679,-460.0,0.00021095,2]
[375216196,1753588249688,-460.0,0.00021095,2]
[375216197,1753588249698,-2116.28,0.00021095,2]
[375216198,1753588249707,-575.22,0.00021095,2]
[375216199,1753588249716,-460.0,0.00021095,2]
[375216200,1753588249725,-697.74,0.00021095,2]
[375216201,1753588249734,-460.0,0.00021095,2]
[375216202,1753588249743,-645.61,0.00021095,2]
[375216203,1753588249753,-460.0,0.00021095,2]